Cogmind - Beta 13 @@@ ROGUE MODE // 2024.07.21 @ 17:27:14 Player: celerysam Result: Destroyed by Y-54 Guardian with Gatling Laser Performance ------------- Evolutions (3) 1500 Regions Visited (7) 1400 Robots Destroyed (17) 85 Value Destroyed (507) 507 Prototype IDs (2) 40 Alien Tech Used (0) 0 Bonus (35) 35 TOTAL SCORE: 3567 Bonus ------- Follower Combat Kills 35 Cogmind --------- Core Integrity 0/700 Matter 30/300 Energy 232/240 System Corruption 0% Temperature Cool (12) Movement Core (200) Ox3 Location -7/Factory Parts ------- > --- POWER (2) -------- Nuclear Core > --- PROPULSION (4) --- (None) > --- UTILITY (4) ------ Coolant Injector Advanced Targeting Computer Improved Melee Analysis Suite > --- WEAPON (3) ------- Power Maul > --- INVENTORY (5) ---- Micro Nuclear Core Improved Heat Sink Drone Bay (0/2) Datajack Makeshift Hammer Peak State ------------ > --- POWER ------------ Micro Nuclear Core > --- PROPULSION ------- Improved Titanium Leg Makeshift Leg Flight Unit Flight Unit > --- UTILITY ---------- Small Storage Unit Seismic Detector > --- WEAPON ----------- Makeshift Laser Makeshift Hammer > --- INVENTORY -------- Micro Nuclear Core Compact Wheel Flight Unit Flight Unit Improved Heat Sink Datajack [Rating: 25] Favorites ----------- Power Light Ion Engine Engine Light Ion Engine Power Core Micro Nuclear Core Propulsion Compact Wheel Leg Aluminum Leg Wheel Compact Wheel Hover Unit Improved Hover Unit Flight Unit Flight Unit Utility Small Storage Unit Device Seismic Detector Storage Small Storage Unit Processor Advanced Targeting Computer Weapon Makeshift Hammer Energy Gun Makeshift Laser Energy Cannon Advanced Beam Cannon Ballistic Gun Assault Rifle Impact Weapon Makeshift Hammer Special Melee Weapon Datajack Build | -11 -10 -10 -10 -9 -8 -8 -7 ------- Run | Yrd Mat Min Exi Min Mat Sto Fac Slots Evolved 6 | . . . . . 4 . 2 Power 1 | . . . . . 1 . . Propulsion 2 | . . . . . 2 . . Utility 2 | . . . . . 1 . 1 Weapon 1 | . . . . . . . 1 Parts Attached 44 | 4 3 8 4 4 4 4 13 Power 5 | . 1 1 . 2 . . 1 Engine 3 | . 1 1 . 1 . . . Core 2 | . . . . 1 . . 1 Reactor . | . . . . . . . . Propulsion 15 | 2 . 2 . 2 4 . 5 Treads . | . . . . . . . . Leg 7 | 2 . . . 2 . . 3 Wheel 2 | . . 2 . . . . . Hover 2 | . . . . . . . 2 Flight 4 | . . . . . 4 . . Utility 8 | 1 1 1 1 . . 1 3 Device 4 | . 1 1 . . . 1 1 Storage 2 | 1 . . 1 . . . . Processor 2 | . . . . . . . 2 Hackware . | . . . . . . . . Protection . | . . . . . . . . Artifact . | . . . . . . . . Weapon 16 | 1 1 4 3 . . 3 4 Energy Gun 6 | 1 . 1 1 . . 2 1 Energy Cannon 1 | . . . . . . 1 . Ballistic Gun 6 | . 1 3 . . . . 2 Ballistic Cannon . | . . . . . . . . Launcher . | . . . . . . . . Special Weapon . | . . . . . . . . Impact Weapon 2 | . . . 1 . . . 1 Slashing Weapon . | . . . . . . . . Piercing Weapon . | . . . . . . . . Special Melee Weapon 1 | . . . 1 . . . . Unidentified Prototypes 2 | . . . . . . 2 . Parts Lost 20 | . 1 6 . . . 1 12 Power 2 | . . 1 . . . . 1 Propulsion 9 | . . 2 . . . 1 6 Utility 3 | . 1 . . . . . 2 Weapon 6 | . . 3 . . . . 3 Highest Loss Streak 10 | . 1 3 . . . 1 10 To Critical Strikes . | . . . . . . . . Average Slot Usage (%) 87 | . 87 74 100 99 76 72 43 Engine 9 | . 5 12 14 12 . . . Core 1 | . . . . 1 9 9 4 Leg 5 | . 28 10 . 1 . . 3 Wheel 16 | . . 7 28 25 . . . Flight 2 | . . . . . 36 36 8 Device 12 | . 12 14 14 14 9 9 5 Storage 12 | . 14 14 14 14 9 9 3 Processor 1 | . . . . . . . 12 Energy Gun 10 | . 14 4 14 14 4 . . Ballistic Gun 3 | . 13 10 1 . . . 3 Impact Weapon 4 | . . . 6 14 9 8 . Special Melee Weapon 3 | . . . 6 . . . . Naked Turns . | . . . . . . . . Heaviest Build 21 | 7 15 15 14 17 15 21 14 Greatest Support 40 | 20 20 32 32 40 16 16 20 Greatest Overweight (x) 3 | . . 3 . . . 1 3 Average Overweight (x) . | . . . . . . . . Largest Inventory Capacity 8 | 8 8 8 8 8 8 8 8 Average Capacity 7 | 7 8 8 8 8 8 8 6 Most Carried 8 | 8 8 8 8 8 7 8 8 Average Carried 7 | 5 7 6 7 7 6 7 5 Final Capacity 8 | 8 8 8 8 8 8 8 5 Final Carried 8 | 8 8 8 8 8 7 8 5 Class Distribution -------------------- 94% | Mutant 5% | Scavenger-Sprinter Dominant Class ---------------- Mutant | -10/Materials Mutant | -10/Mines Mutant | -10/Exiles Mutant | -9/Mines Mutant | -8/Materials Scavenger-Sprinter | -8/Storage Mutant | -7/Factory Resources | -11 -10 -10 -10 -9 -8 -8 -7 ----------- Run | Yrd Mat Min Exi Min Mat Sto Fac Matter Collected 437 | 169 64 140 . 64 . . . Remotely . | . . . . . . . . Salvage Created 547 | . 233 140 . 31 . 40 103 Parts 31 | . 12 12 . 4 . . 3 Haulers Intercepted . | . . . . . . . . Recyclers Shooed . | . . . . . . . . Parts Field Recycled . | . . . . . . . . Retrieved Matter . | . . . . . . . . Parts Self-Destructed . | . . . . . . . . Prevented . | . . . . . . . . Kills | -11 -10 -10 -10 -9 -8 -8 -7 ------- Run | Yrd Mat Min Exi Min Mat Sto Fac Combat Hostiles Destroyed 17 | . 7 5 . 2 . 1 2 Melee 1 | . . . . . . 1 . Guns 15 | . 6 5 . 2 . . 2 AOE 1 | . 1 . . . . . . Classes Destroyed 2 | . 2 . . . . . . Swarmer 8 | . 3 3 . 2 . . . Grunt 9 | . 4 2 . . . 1 2 Best Kill Streak 5 | . 5 4 . 1 . 1 2 Combat Bots Only 5 | . 5 4 . 1 . 1 2 Max Kills in Single Turn 1 | . 1 1 . 1 . 1 1 Gunslinging . | . . . . . . . . Exploded 1 | . 1 . . . . . . Melee 1 | . . . . . . 1 . Uniques/NPCs Destroyed . | . . . . . . . . Combat | -11 -10 -10 -10 -9 -8 -8 -7 -------- Run | Yrd Mat Min Exi Min Mat Sto Fac Hostile Shots Fired 520 | . 41 74 . 3 . 44 358 Missed 222 | . 18 20 . 1 . 23 160 Damage Taken 2771 | . 303 584 . 15 . 318 1551 Core 1042 | . 21 193 . . . 122 706 Absorbed by Shields . | . . . . . . . . Core Remaining (%) 63 | 100 . . . 14 . 77 . Volleys Fired 78 | . 20 26 6 6 . 5 15 Largest 2 | . 2 2 2 1 . 1 2 Hottest 150 | . 60 40 150 50 . 50 56 Shots Fired 110 | . 40 30 7 6 . 5 22 Gun 110 | . 40 30 7 6 . 5 22 Cannon . | . . . . . . . . Launcher . | . . . . . . . . Special . | . . . . . . . . Kinetic 68 | . 20 30 1 . . . 17 Thermal 22 | . . . 6 6 . 5 5 Explosive . | . . . . . . . . Electromagnetic 20 | . 20 . . . . . . Robot Hit Streak 12 | . 8 12 . 1 . 4 5 Robot Miss Streak 3 | . 3 3 . 3 . 1 3 Penetration Max . | . . . . . . . . Secondary Targets 3 | . 2 . . . . . 1 Max Gunslinging Chain 1 | . 1 . . . . . 1 Shots Hit Robots 78 | . 26 20 7 2 . 7 16 Core Hits 31 | . 13 9 . 2 . 2 5 Critical Kills 1 | . . . . . . 1 . Critical Parts Destroyed 2 | . . . . . . 1 1 Critical Strikes 4 | . . . . 1 . 2 1 Burn 1 | . . . . 1 . . . Smash 3 | . . . . . . 2 1 Melee Attacks 25 | . . . 17 . . 7 1 Impact 17 | . . . 9 . . 7 1 Slashing . | . . . . . . . . Piercing . | . . . . . . . . Sneak Attacks 5 | . . . 5 . . . . Combat Hostiles 5 | . . . 5 . . . . Follow-up Attacks . | . . . . . . . . Damage Inflicted 1167 | . 349 203 . 35 . 215 365 Guns 944 | . 328 195 . 35 . 67 319 Cannons . | . . . . . . . . Explosions 21 | . 21 . . . . . . Melee 194 | . . . . . . 148 46 Ramming 8 | . . 8 . . . . . Kinetic 664 | . 184 195 . . . . 285 Thermal 157 | . 21 . . 35 . 67 34 Explosive . | . . . . . . . . Electromagnetic 144 | . 144 . . . . . . Impact 194 | . . . . . . 148 46 Slashing . | . . . . . . . . Piercing . | . . . . . . . . Highest Corruption . | . . . . . . . . Average Corruption . | . . . . . . . . Corruption Purged . | . . . . . . . . Corruption Blocked . | . . . . . . . . Overload Shots 2 | . . . 2 . . . . Effects 2 | . . . 2 . . . . Energy Bleed 2 | . . . 2 . . . . Overflow Damage 100 | . . . . . . 54 46 Projectiles . | . . . . . . . . Explosions . | . . . . . . . . Melee 100 | . . . . . . 54 46 Knockbacks . | . . . . . . . . Impact . | . . . . . . . . Kinetic . | . . . . . . . . Secondary . | . . . . . . . . Self-Inflicted Damage 26 | . 23 3 . . . . . Shots 1 | . 1 . . . . . . Rammed 7 | . . 7 . . . . . Targets Rammed 7 | . . 7 . . . . . Kicked . | . . . . . . . . Crushed . | . . . . . . . . Highest Temperature 220 | . 2 9 220 20 . 83 21 Average Temperature 44 | . 2 7 75 12 . 50 8 Received Heat Transfer 1059 | . 138 210 . . . 225 486 Siege Activations . | . . . . . . . . Robots Corrupted . | . . . . . . . . Combat Hostiles . | . . . . . . . . Parts Fried . | . . . . . . . . Impact Corruptions 2 | . . . . . . 1 1 Robots Melted . | . . . . . . . . Combat Hostiles . | . . . . . . . . Parts Melted . | . . . . . . . . Heat Transferred 420 | . 50 . . 148 . 148 74 Parts Sabotaged . | . . . . . . . . Parts Stolen . | . . . . . . . . Parts Stripped . | . . . . . . . . Power Chain Reactions 1 | . 1 . . . . . . Alert | -11 -10 -10 -10 -9 -8 -8 -7 ------- Run | Yrd Mat Min Exi Min Mat Sto Fac Peak Influence 244 | . 244 166 . 184 71 204 107 Initial 92 | . . 91 . . 71 29 92 Average 98 | . 127 115 . 158 71 76 58 Maximum Alert Level 1 | . 1 . . . . 1 . Low Security (%) 91 | 100 70 100 . 100 100 99 100 Level 1 8 | . 29 . . . . . . Level 2 . | . . . . . . . . Level 3 . | . . . . . . . . Level 4 . | . . . . . . . . Level 5 . | . . . . . . . . High Security . | . . . . . . . . Max Security . | . . . . . . . . Squads Dispatched 7 | . 2 . . . . 3 2 Investigation 2 | . . . . . . 2 . Extermination 1 | . . . . . . . 1 Reinforcement 4 | . 2 . . . . 1 1 Assault . | . . . . . . . . Garrison . | . . . . . . . . Intercept . | . . . . . . . . Searches Triggered . | . . . . . . . . Construction Impeded . | . . . . . . . . Haulers Reinforced . | . . . . . . . . Active Scanning Responses . | . . . . . . . . Cargo Convoy Interrupts . | . . . . . . . . Stealth | -11 -10 -10 -10 -9 -8 -8 -7 --------- Run | Yrd Mat Min Exi Min Mat Sto Fac Distress Signals 2 | . 2 . . . . . . Communications Jammed . | . . . . . . . . Distress Signals . | . . . . . . . . Times Spotted 52 | . 17 5 . 7 . 14 9 Peak Tracking Total 13 | . 7 5 . 4 . 13 7 Tactical Retreats 1 | . . . . . . 1 . Traps | -11 -10 -10 -10 -9 -8 -8 -7 ------- Run | Yrd Mat Min Exi Min Mat Sto Fac Traps Triggered . | . . . . . . . . Indirectly . | . . . . . . . . Trap Hack Attempts . | . . . . . . . . Triggered . | . . . . . . . . Disarmed . | . . . . . . . . Reprogrammed . | . . . . . . . . Reused . | . . . . . . . . Traps Extracted . | . . . . . . . . Installed . | . . . . . . . . Triggered . | . . . . . . . . Machines | -11 -10 -10 -10 -9 -8 -8 -7 ---------- Run | Yrd Mat Min Exi Min Mat Sto Fac Machines Disabled 4 | . 1 1 . 1 . 1 . Max in Single Turn 1 | . 1 1 . 1 . 1 . Machines Repaired . | . . . . . . . . Machines Dismantled . | . . . . . . . . Machines Sabotaged . | . . . . . . . . Overloaded Fab Kills . | . . . . . . . . Hacking | -11 -10 -10 -10 -9 -8 -8 -7 --------- Run | Yrd Mat Min Exi Min Mat Sto Fac Machines Accessed 11 | . 2 . 2 1 . 4 2 Terminals 6 | . 2 . . . . 4 . Fabricators 2 | . . . . . . . 2 Repair Stations . | . . . . . . . . Recycling Units . | . . . . . . . . Scanalyzers . | . . . . . . . . Garrison Access . | . . . . . . . . Total Hacks 47 | . 4 . 33 1 . 7 2 Successful 39 | . 2 . 33 1 . 3 . Failed 8 | . 2 . . . . 4 2 Catastrophic 2 | . 1 . . . . 1 . Database Lockouts . | . . . . . . . . Manual 10 | . 3 . 7 . . . . Terminals 11 | . 4 . . . . 7 . Fabricators 2 | . . . . . . . 2 Repair Stations . | . . . . . . . . Recycling Units . | . . . . . . . . Scanalyzers . | . . . . . . . . Garrison Access . | . . . . . . . . Terminal Hacks 37 | . . . 33 1 . 3 . Record 33 | . . . 33 . . . . Open Door 3 | . . . . 1 . 2 . Security Status 1 | . . . . . . 1 . Fabricator Hacks . | . . . . . . . . Repair Station Hacks . | . . . . . . . . Recycling Unit Hacks . | . . . . . . . . Scanalyzer . | . . . . . . . . Garrison Access Hacks . | . . . . . . . . Unauthorized Hacks 2 | . 2 . . . . . . Terminals 2 | . 2 . . . . . . Track 1 | . 1 . . . . . . Assimilate 1 | . 1 . . . . . . Fabricators . | . . . . . . . . Repair Stations . | . . . . . . . . Recycling Units . | . . . . . . . . Scanalyzers . | . . . . . . . . Garrison Access . | . . . . . . . . Data Cores Recovered . | . . . . . . . . Used . | . . . . . . . . Hacking Detections 6 | . 1 . . . . 3 2 Full Trace Events 1 | . . . . . . 1 . Feedback Events . | . . . . . . . . Feedback Blocked . | . . . . . . . . Robot Schematics Acquired . | . . . . . . . . Robots Built . | . . . . . . . . Authchips . | . . . . . . . . Time . | . . . . . . . . Total Robot Build Rating . | . . . . . . . . Part Schematics Acquired . | . . . . . . . . Parts Built . | . . . . . . . . Authchips . | . . . . . . . . Time . | . . . . . . . . Total Part Build Rating . | . . . . . . . . Parts Repaired . | . . . . . . . . Time . | . . . . . . . . Parts Recycled . | . . . . . . . . Recycled Matter . | . . . . . . . . Retrieved Matter . | . . . . . . . . Retrieved Components . | . . . . . . . . Parts Scanalyzed . | . . . . . . . . Part Schematics Acquired . | . . . . . . . . Parts Damaged . | . . . . . . . . Bothacking | -11 -10 -10 -10 -9 -8 -8 -7 ------------ Run | Yrd Mat Min Exi Min Mat Sto Fac Used RIF Installer . | . . . . . . . . Robots Hacked . | . . . . . . . . Non-combat . | . . . . . . . . Combat . | . . . . . . . . Robot Hacks Applied . | . . . . . . . . Relay Couplers Released . | . . . . . . . . Fabnet Peak Effective % . | . . . . . . . . Robots Rewired 2 | . . . 2 . . . . Allies Hacked . | . . . . . . . . Hacks Repelled . | . . . . . . . . Allies | -11 -10 -10 -10 -9 -8 -8 -7 -------- Run | Yrd Mat Min Exi Min Mat Sto Fac Total Allies 3 | . 1 . 2 . . . . Largest Group 2 | . 1 . 2 2 1 1 . Highest-Rated Group 29 | . 10 . 29 29 21 21 . Highest-Rated Ally 21 | . 10 . 21 21 21 21 . Total Orders . | . . . . . . . . Ally Attacks 14 | . . . . 14 . . . Total Damage 219 | . . . . 219 . . . Kills 5 | . . . . 5 . . . Allies Corrupted . | . . . . . . . . Allies Melted . | . . . . . . . . Intel | -11 -10 -10 -10 -9 -8 -8 -7 ------- Run | Yrd Mat Min Exi Min Mat Sto Fac Robot Analysis Total . | . . . . . . . . Derelict Logs Recovered 1 | . . . . 1 . . . Drone Launches 2 | . . . . . . 2 . Drone Recoveries . | . . . . . . . . Exploration | -11 -10 -10 -10 -9 -8 -8 -7 ------------- Run | Yrd Mat Min Exi Min Mat Sto Fac Turns Passed 2377 | 78 322 223 1191 150 22 101 290 Spaces Moved 2165 | 57 214 125 1126 102 20 212 309 Core 120 | 8 . 8 . . . . 104 Treads . | . . . . . . . . Legs 342 | 49 214 61 . 8 . . 10 Wheels 1276 | . . 56 1126 94 . . . Hover 3 | . . . . . . . 3 Flight 424 | . . . . . 20 212 192 Fastest Speed 31 | 50 120 100 100 100 31 31 44 Average Speed 92 | 110 120 114 100 102 31 32 75 Slowest Speed 200 | 120 120 200 100 135 31 114 200 Overloaded Moves . | . . . . . . . . Propulsion Burnouts . | . . . . . . . . Robots Hopped . | . . . . . . . . Cave-ins Triggered . | . . . . . . . . Exploration Rate (%) 30 | 4 52 18 91 28 5 37 10 Regions Visited 7 Branch Regions 4 Pre-discovered Areas 2 | . . . 1 1 . . . Known Exits Taken . | . . . . . . . . Unknown Exits Taken 7 | 1 1 1 1 1 1 1 . Scrap Searched 1 | . . . . 1 . . . Spaces Dug 3 | . . . . . . 3 . Terrain Destroyed 5 | . 2 . . . . 3 . Melee 3 | . . . . . . 3 . Projectile . | . . . . . . . . AOE 2 | . 2 . . . . . . Terrain Rammed . | . . . . . . . . Walls Destroyed . | . . . . . . . . Machines Disabled . | . . . . . . . . Actions | -11 -10 -10 -10 -9 -8 -8 -7 --------- Run | Yrd Mat Min Exi Min Mat Sto Fac Total 2404 | 71 238 173 1171 143 34 233 341 Wait 45 | . . . 12 23 10 . . Move 2158 | 56 213 124 1125 101 19 211 309 Hop . | . . . . . . . . Pick Up 28 | 11 2 7 2 3 . 2 1 Fast Attach 14 | 1 1 1 1 1 . 2 7 Attach 18 | 3 2 6 . . 2 1 4 Detach 3 | . . . . . 1 1 1 Swap 12 | . . 1 3 3 2 1 2 Drop 15 | . . 1 4 6 . 3 1 Fire 78 | . 20 26 6 6 . 5 15 Melee 25 | . . . 17 . . 7 1 Ram 7 | . . 7 . . . . . Kick . | . . . . . . . . Crush . | . . . . . . . . Escape Stasis . | . . . . . . . . Rewire 1 | . . . 1 . . . . Trap . | . . . . . . . . Miscellaneous . | . . . . . . . . Route ------- -11/Scrapyard -10/Materials -10/Mines -10/Exiles -9/Mines -8/Materials -8/Storage -7/Factory History --------- Turn | Location | Event 2 | -11/Scrapyard | Met Revision 17 8 | -11/Scrapyard | Discovered new exit (range 16) 79 | -11/Scrapyard | Entered Materials 304 | -10/Materials | Build established: Mutant 387 | -10/Materials | Discovered new exit (range 12) 401 | -10/Materials | Entered Mines 492 | -10/Mines | Core integrity fell below 50% 524 | -10/Mines | Lost 3 parts (1p2n) 536 | -10/Mines | Core integrity fell below 20% 620 | -10/Mines | Deemed a non-threat by the Exiles lab entrance 620 | -10/Mines | Discovered new exit (range 5) 624 | -10/Mines | Entered Exiles 624 | -10/Exiles | Found Exiles lab destroyed 751 | -10/Exiles | Learned location of Zion (-7) 1754 | -10/Exiles | Discovered new exit (range 15) 1815 | -10/Exiles | Entered Mines 1815 | -9/Mines | Accompanied by 2 allies 1909 | -9/Mines | Discovered new exit (range 8) 1941 | -9/Mines | Assembled infested the area 1945 | -9/Mines | Met a Derelict who couldn't figure out how to use a Trap Extractor 1965 | -9/Mines | Entered Materials 1965 | -8/Materials | Accompanied by 1 ally 1965 | -8/Materials | Evolved 4 slots: Power x1, Propulsion x2, Utility x1 1971 | -8/Materials | Discovered new exit (range 14) 1987 | -8/Materials | Entered Storage 1987 | -8/Storage | Accompanied by 1 ally 2068 | -8/Storage | Discovered new exit (range 9) 2088 | -8/Storage | Entered Factory 2088 | -7/Factory | Evolved 2 slots: Utility x1, Weapon x1 2229 | -7/Factory | Core integrity fell below 50% 2259 | -7/Factory | Lost 10 parts (1p6n2u1w) 2297 | -7/Factory | Core integrity fell below 20% 2378 | -7/Factory | Destroyed by Y-54 Guardian with Gatling Laser Last Messages --------------- 02240_ Acquired Gauss Rifle. 02246_ Acquired Coolant Injector. 02265_ Slug penetrates Wall. 02265_ Slug penetrates G-50 Soldier. 02274_ Slug penetrates G-47 Trooper. 02277_ G-50 Soldier destroyed. 02277_ Switching to secondary target: G-47 Trooper. 02280_ Slug penetrates G-47 Trooper. 02283_ G-47 Trooper destroyed. 02289_ Acquired Nuclear Core. 02291_ Gauss Rifle destroyed. 02291_ R-06 Scavenger collects Lgt. Angular Momentum Engine. 02293_ Slug penetrates G-47 Trooper. 02309_ Slug penetrates Wall. 02310_ Gauss Rifle destroyed. 02338_ ALERT: Rogue bot located, Programmers report to Factory Zone 5F. 02348_ Acquired Power Maul. 02378_ Y-54 Guardian suffers critical hit (Smash). 02378_ Destroyed Imp. Deuterium Engine. 02378_ Y-54 Guardian system corrupted by crushing effect. Map ----- +----------------------------------------------------+ | ??????????????????????# + T #??????? | | ??????????????????????#+######## #??????? | | ??????????????????????# ######## #??????? | | ??????????????????????# ### ###??????? | | ????????????????????### ### ####?????? | | ???????????????????+ +?????? | | ?????????????????????????# ##?????? | | ?????????????????????????# !!! #??????? | | ?????????????????????????### !!! #??????? | | ???????????????????????????# !! #??????? | | ???????????????????????????+ +??????? | | ???????????????????????????# """ #??????? | | ???????????????????????????# """ ??????? | | ???????????????????????????# """ ??????? | | ???????????????????????????# ?????? | | ???????????????????????????# " #?????? | | ???????????????????????????+ #?????? | | ???????????????????????????# #?????? | | ???????????????????????????# #??????? | | ???????????????????????????# #??????? | | ????????????????############ / #??????? | | ????????????????# ## // #??????? | | ????????????????# # / ##??????? | | ??????????????????"""""""Y/ #???????? | | ????????????????# """""""Y# #???????? | | ????????????????# """""""@###########???????? | | ????????????????# """"""" #?????????????????? | | ????????????????# #?????????????????? | | ????????????????# #?????????????????? | | ????????????????###########?????????????????? | | ????????????????????????????????????????????? | | ????????????????????????????????????????????? | | ????????????????????????????????????????????? | | ????????????????????????????????????????????? | | ????????????????????????????????????????????? | | ????????????????????????????????????????????? | | ????????????????????????????????????????????? | | ????????????????????????????????????????????? | | ????????????????????????????????????????????? | | ????????????????????????????????????????????? | | ????????????????????????????????????????????? | | ????????????????????????????????????????????? | | ????????????????????????????????????????????? | | ????????????????????????????????????????????? | | ????????????????????????????????????????????? | | ????????????????????????????????????????????? | | ????????????????????????????????????????????? | | ????????????????????????????????????????????? | | ????????????????????????????????????????????? | | ????????????????????????????????????????????? | +----------------------------------------------------+ Best States ------------- Heat Dissipation 35 Coolant Potential 65 Energy Generation 15 Energy Capacity 250 Matter Stores 300 Matter Capacity 300 Sight Range 16 Terrain Scan Density 10 Evasion (%) 63 Targeting Accuracy 8 Melee Accuracy 6 Item Schematics ----------------- None Robot Schematics ------------------ None Fabricated ------------ Nothing Alien Tech Used ----------------- None Achievements -------------- None Challenges ------------ None Game ------ Seed RelayGlidesysArmor Manual? 0 Play Time 00:32:31 Cumulative 109.3 hours Start 2024.07.21 @ 16:22:22 End 2024.07.21 @ 17:27:14 Sessions 1 Manual Loads 0 Difficulty Rogue Special Mode None Game No. 155 Rogue 155 Adventurer 0 Explorer 0 Win Type - Total 0 Types 0/0/0/0/0/0/0/0/0 Lore% 45 Gallery% 58 Achievement% 37 Wizard Run 0 Options --------- Layout 0 ASCII 0 Keyboard 0 Movement Mouse Keybinds 0 Fullscreen 1 Font 24/Smallcaps Map View 76x50 Zoom Use 0% Tactical HUD 1 Map Filters NONE Filters NONE Steam 1 RUN: 5e76179f-583d-4d84-89ee-ced4e1dec398